fUST/lending_fUST_20250626
["ID","MTS","AMOUNT","RATE_DAILY","PERIOD"]
[367646137,1750885143169,505.590209,0.00015644,2]
[367646138,1750885515146,1929.58304782,0.00015506,2]
[367646139,1750885515168,20000.0,0.00015506,2]
[367646140,1750885515191,2970.41695218,0.00015506,2]
[367646141,1750885723332,3162.49039412,0.00016,2]
[367646162,1750885832029,-752.81941371,0.00016338,2]
[367646164,1750885832042,-300.0,0.00016436,2]
[367646166,1750885832056,-300.0,0.00016436,2]
[367646168,1750885832065,-1200.0,0.00016436,2]
[367646170,1750885832075,-300.0,0.00016436,2]
[367646172,1750885832084,-11673.75687786,0.00016437,2]
[367646174,1750885832093,-328.34419757,0.00016437,2]
[367646176,1750885832103,-185.61529829,0.00016437,2]
[367646180,1750885832136,-66.33138745,0.00016437,2]
[367646182,1750885832146,-500.0,0.00016437,2]
[367646185,1750885832156,-500.0,0.00016437,2]
[367646187,1750885832166,-649.84647616,0.00016437,2]
[367646189,1750885832175,-500.0,0.00016437,2]
[367646190,1750885832184,-500.0,0.00016437,2]
[367646191,1750885832194,-500.0,0.00016437,2]
[367646192,1750885832204,-500.0,0.00016437,2]
[367646193,1750885832213,-500.0,0.00016437,2]
[367646194,1750885832222,-500.0,0.00016437,2]
[367646196,1750885832231,-500.0,0.00016437,2]
[367646197,1750885832240,-500.0,0.00016437,2]
[367646198,1750885832249,-396.69092281,0.00016437,2]
[367646199,1750885832261,-103.30907719,0.00016437,2]
[367646200,1750885832271,-500.0,0.00016437,2]
[367646201,1750885832281,-500.0,0.00016437,2]
[367646202,1750885832291,-460.0,0.00016438,2]
[367646203,1750885832300,-402.516297,0.00016438,2]
[367646204,1750885832310,-255.54339891,0.00016438,2]
[367646238,1750885838072,-204.45660109,0.00016438,2]
[367646240,1750885838082,-460.0,0.00016438,2]
[367646242,1750885838092,-460.0,0.00016438,2]
[367646244,1750885838101,-460.0,0.00016438,2]
[367646246,1750885838111,-154.37641902,0.00016438,2]
[367646248,1750885838119,-460.0,0.00016438,2]
[367646250,1750885838129,-219.57425609,0.00016438,2]
[367646252,1750885838138,-460.0,0.00016438,2]
[367646254,1750885838148,-460.0,0.00016438,2]
[367646256,1750885838158,-460.0,0.00016438,2]
[367646270,1750885838370,-460.0,0.00016438,2]
[367646271,1750885838380,-460.0,0.00016438,2]
[367646272,1750885838389,-310.00762965,0.00016438,2]
[367646273,1750885838399,-487.74873008,0.00016438,2]
[367646274,1750885838408,-233.4846379,0.00016438,2]
[367646275,1750885838419,-460.0,0.00016438,2]
[367646276,1750885838429,-460.0,0.00016438,2]
[367646277,1750885838438,-460.0,0.00016438,2]
[367646278,1750885838448,-531.57,0.00016438,2]
[367646279,1750885838457,-460.0,0.00016438,2]
[367646280,1750885838467,-460.0,0.00016438,2]
[367646281,1750885838476,-460.0,0.00016438,2]
[367646282,1750885838485,-460.0,0.00016438,2]
[367646283,1750885838495,-460.0,0.00016438,2]
[367646284,1750885838504,-460.0,0.00016438,2]
[367646285,1750885838513,-460.0,0.00016438,2]
[367646286,1750885838523,-460.0,0.00016438,2]
[367646287,1750885838532,-411.34246556,0.00016438,2]
[367646288,1750885838541,-460.0,0.00016438,2]
[367646289,1750885838551,-460.0,0.00016438,2]
[367646290,1750885838560,-488.79,0.00016438,2]
[367646291,1750885838570,-460.0,0.00016438,2]
[367646292,1750885838579,-460.0,0.00016438,2]
[367646293,1750885838588,-460.0,0.00016438,2]
[367646294,1750885838598,-460.0,0.00016438,2]
[367646295,1750885838607,-460.0,0.00016438,2]
[367646296,1750885838616,-470.07531415,0.00016438,2]
[367646297,1750885838625,-460.0,0.00016438,2]
[367646298,1750885838635,-460.0,0.00016438,2]
[367646299,1750885838644,-575.46,0.00016438,2]
[367646300,1750885838655,-460.0,0.00016438,2]
[367646301,1750885838665,-331.09688267,0.00016438,2]
[367646302,1750885838676,-460.0,0.00016438,2]
[367646303,1750885838685,-460.0,0.00016438,2]
[367646304,1750885838695,-460.0,0.00016438,2]
[367646305,1750885838705,-460.0,0.00016438,2]
[367646306,1750885838715,-460.0,0.00016438,2]
[367646307,1750885838724,-460.0,0.00016438,2]
[367646308,1750885838734,-460.0,0.00016438,2]
[367646309,1750885838745,-460.0,0.00016438,2]
[367646310,1750885838754,-460.0,0.00016438,2]
[367646311,1750885838765,-167.89,0.00016438,2]
[367646312,1750885838774,-500.0,0.00016438,2]
[367646313,1750885838784,-460.0,0.00016438,2]
[367646314,1750885838793,-460.0,0.00016438,2]
[367646315,1750885838803,-460.0,0.00016438,2]
[367646316,1750885838812,-460.0,0.00016438,2]
[367646317,1750885838821,-438.9860764,0.00016438,2]
[367646318,1750885838831,-307.69259463,0.00016438,2]
[367646319,1750885838843,-460.0,0.00016438,2]
[367646320,1750885838852,-460.0,0.00016438,2]
[367646321,1750885838861,-460.0,0.00016438,2]
[367646322,1750885838870,-460.0,0.00016438,2]
[367646323,1750885838880,-460.0,0.00016438,2]
[367646324,1750885838892,-460.0,0.00016438,2]
[367646325,1750885838903,-460.0,0.00016438,2]
[367646326,1750885838913,-460.0,0.00016438,2]
[367646327,1750885838923,-579.61225319,0.00016438,2]
[367646328,1750885838933,-460.0,0.00016438,2]
[367646329,1750885838942,-460.0,0.00016438,2]
[367646330,1750885838954,-256.11180284,0.00016438,2]
[367646331,1750885838964,-433.69,0.00016438,2]
[367646332,1750885838974,-482.19406273,0.00016438,2]
[367646333,1750885838983,-460.0,0.00016438,2]
[367646334,1750885838992,-478.66959338,0.00016438,2]
[367646335,1750885839002,-460.0,0.00016438,2]
[367646336,1750885839010,-330.19694345,0.00016438,2]
[367646337,1750885839019,-460.0,0.00016438,2]
[367646338,1750885839028,-348.54680832,0.00016438,2]
[367646339,1750885839038,-578.98,0.00016438,2]
[367646340,1750885839047,-405.00700724,0.00016438,2]
[367646341,1750885839057,-460.0,0.00016438,2]
[367646342,1750885839066,-460.0,0.00016438,2]
[367646343,1750885839076,-2850.69,0.00016438,2]
[367646344,1750885839086,-1856.43,0.00016438,2]
[367646345,1750885839095,-326.92886978,0.00016438,2]
[367646346,1750885839104,-460.0,0.00016438,2]
[367646347,1750885839114,-524.82371217,0.00016438,2]
[367646348,1750885839123,-460.0,0.00016438,2]
[367646349,1750885839132,-460.0,0.00016438,2]
[367646350,1750885839142,-460.0,0.00016438,2]
[367646351,1750885839151,-481.29,0.00016438,2]
[367646352,1750885839161,-460.0,0.00016438,2]
[367646353,1750885839171,-460.0,0.00016438,2]
[367646354,1750885839180,-613.19,0.00016438,2]
[367646355,1750885839189,-460.0,0.00016438,2]
[367646356,1750885839199,-460.0,0.00016438,2]
[367646357,1750885839208,-460.0,0.00016438,2]
[367646358,1750885839217,-460.0,0.00016438,2]
[367646359,1750885839226,-1831.12,0.00016438,2]
[367646360,1750885839235,-460.0,0.00016438,2]
[367646361,1750885839245,-461.9,0.00016438,2]
[367646362,1750885839254,-460.0,0.00016438,2]
[367646363,1750885839264,-460.0,0.00016438,2]
[367646364,1750885839274,-460.0,0.00016438,2]
[367646365,1750885839284,-2633.05,0.00016438,2]
[367646366,1750885839293,-460.0,0.00016438,2]
[367646367,1750885839303,-460.0,0.00016438,2]
[367646368,1750885839312,-1653.86,0.00016438,2]
[367646369,1750885839322,-882.81,0.00016438,2]
[367646370,1750885839331,-854.18,0.00016438,2]
[367646371,1750885839341,-460.0,0.00016438,2]
[367646372,1750885839351,-1100.09,0.00016438,2]
[367646373,1750885839361,-2227.83,0.00016438,2]
[367646374,1750885839371,-460.0,0.00016438,2]
[367646375,1750885839380,-460.0,0.00016438,2]
[367646376,1750885839389,-939.25,0.00016438,2]
[367646377,1750885839399,-1152.15,0.00016438,2]
[367646378,1750885839409,-460.0,0.00016438,2]
[367646379,1750885839420,-460.0,0.00016438,2]
[367646380,1750885839430,-460.0,0.00016438,2]
[367646381,1750885839439,-460.0,0.00016438,2]
[367646382,1750885839449,-460.0,0.00016438,2]
[367646383,1750885839459,-460.0,0.00016438,2]
[367646384,1750885839468,-919.85,0.00016438,2]
[367646385,1750885839478,-460.0,0.00016438,2]
[367646387,1750885839487,-582.48,0.00016438,2]
[367646388,1750885839496,-460.0,0.00016438,2]
[367646389,1750885839505,-460.0,0.00016438,2]
[367646390,1750885839514,-460.0,0.00016438,2]
[367646391,1750885839524,-1161.54,0.00016438,2]
[367646392,1750885839533,-432.22942294,0.00016438,2]
[367646393,1750885839542,-460.0,0.00016438,2]
[367646394,1750885839552,-460.0,0.00016438,2]
[367646395,1750885839561,-1235.74,0.00016438,2]
[367646396,1750885839571,-460.0,0.00016438,2]
[367646397,1750885839580,-460.0,0.00016438,2]
[367646398,1750885839590,-460.0,0.00016438,2]
[367646399,1750885839599,-460.0,0.00016438,2]
[367646400,1750885839608,-460.0,0.00016438,2]
[367646401,1750885839618,-495.44,0.00016438,2]
[367646402,1750885839627,-639.5,0.00016438,2]
[367646403,1750885839636,-460.0,0.00016438,2]
[367646404,1750885839645,-551.93,0.00016438,2]
[367646405,1750885839655,-460.0,0.00016438,2]
[367646406,1750885839664,-460.0,0.00016438,2]
[367646407,1750885839676,-1584.49,0.00016438,2]
[367646409,1750885839684,-460.0,0.00016438,2]
[367646410,1750885839693,-460.0,0.00016438,2]
[367646411,1750885839702,-460.0,0.00016438,2]
[367646412,1750885839712,-460.0,0.00016438,2]
[367646413,1750885839721,-460.0,0.00016438,2]
[367646414,1750885839730,-808.07,0.00016438,2]
[367646415,1750885839739,-431.36362021,0.00016438,2]
[367646416,1750885839748,-262.75,0.00016438,2]
[367646417,1750885839758,-346.53533228,0.00016438,2]
[367646418,1750885839767,-420.62554033,0.00016438,2]
[367646419,1750885839777,-460.0,0.00016438,2]
[367646420,1750885839787,-519.67,0.00016438,2]
[367646422,1750885839796,-1012.07,0.00016438,2]
[367646423,1750885839806,-460.0,0.00016438,2]
[367646424,1750885839816,-343.78193966,0.00016438,2]
[367646425,1750885839827,-460.0,0.00016438,2]
[367646426,1750885839840,-465.13,0.00016438,2]
[367646427,1750885839849,-460.0,0.00016438,2]
[367646428,1750885839859,-460.0,0.00016438,2]
[367646429,1750885839867,-460.0,0.00016438,2]
[367646430,1750885839878,-460.0,0.00016438,2]
[367646431,1750885839887,-591.89,0.00016438,2]
[367646432,1750885839896,-460.0,0.00016438,2]
[367646433,1750885839906,-460.0,0.00016438,2]
[367646434,1750885839915,-666.0,0.00016438,2]
[367646435,1750885839926,-460.0,0.00016712,2]
[367646436,1750885839935,-460.0,0.00016712,2]
[367646437,1750885839944,-169.66,0.00016712,2]
[367646438,1750885839953,-460.0,0.00016712,2]
[367646440,1750885839962,-460.0,0.00016712,2]
[367646442,1750885839971,-460.0,0.00016712,2]
[367646443,1750885839980,-460.0,0.00016712,2]
[367646444,1750885839990,-460.0,0.00016712,2]
[367646445,1750885839999,-460.0,0.00016712,2]
[367646446,1750885840008,-488.79,0.00016712,2]
[367646448,1750885840018,-460.0,0.00016712,2]
[367646449,1750885840027,-460.0,0.00016712,2]
[367646451,1750885840036,-460.0,0.00016712,2]
[367646452,1750885840046,-460.0,0.00016712,2]
[367646453,1750885840055,-460.0,0.00016712,2]
[367646454,1750885840066,-460.0,0.00016712,2]
[367646455,1750885840075,-460.0,0.00016712,2]
[367646456,1750885840084,-460.0,0.00016712,2]
[367646457,1750885840094,-460.0,0.00016712,2]
[367646458,1750885840103,-460.0,0.00016712,2]
[367646459,1750885840113,-460.0,0.00016712,2]
[367646460,1750885840124,-460.0,0.00016712,2]
[367646461,1750885840134,-460.0,0.00016712,2]
[367646462,1750885840145,-460.0,0.00016712,2]
[367646463,1750885840155,-460.0,0.00016712,2]
[367646464,1750885840165,-460.0,0.00016712,2]
[367646465,1750885840175,-2850.69,0.00016712,2]
[367646467,1750885840184,-1856.43,0.00016712,2]
[367646468,1750885840194,-460.0,0.00016712,2]
[367646469,1750885840203,-460.0,0.00016712,2]
[367646470,1750885840213,-460.0,0.00016712,2]
[367646471,1750885840222,-481.29,0.00016712,2]
[367646472,1750885840233,-460.0,0.00016712,2]
[367646474,1750885840243,-460.0,0.00016712,2]
[367646475,1750885840252,-613.19,0.00016712,2]
[367646476,1750885840262,-416.35,0.00016712,2]
[367646477,1750885840274,-460.0,0.00016712,2]
[367646478,1750885840283,-460.0,0.00016712,2]
[367646479,1750885840292,-1831.12,0.00016712,2]
[367646480,1750885840301,-460.0,0.00016712,2]
[367646481,1750885840311,-461.9,0.00016712,2]
[367646482,1750885840320,-460.0,0.00016712,2]
[367646483,1750885840329,-304.92,0.00016712,2]
[367646484,1750885840339,-2633.05,0.00016712,2]
[367646485,1750885840348,-460.0,0.00016712,2]
[367646486,1750885840357,-460.0,0.00016712,2]
[367646487,1750885840367,-1653.86,0.00016712,2]
[367646488,1750885840376,-882.81,0.00016712,2]
[367646489,1750885840386,-854.18,0.00016712,2]
[367646490,1750885840395,-460.0,0.00016712,2]
[367646491,1750885840405,-1100.09,0.00016712,2]
[367646492,1750885840414,-2227.83,0.00016712,2]
[367646493,1750885840425,-460.0,0.00016712,2]
[367646494,1750885840434,-460.0,0.00016712,2]
[367646495,1750885840443,-939.25,0.00016712,2]
[367646496,1750885840453,-1152.15,0.00016712,2]
[367646497,1750885840462,-460.0,0.00016712,2]
[367646498,1750885840472,-460.0,0.00016712,2]
[367646499,1750885840481,-460.0,0.00016712,2]
[367646500,1750885840490,-460.0,0.00016712,2]
[367646501,1750885840499,-460.0,0.00016712,2]
[367646502,1750885840509,-919.85,0.00016712,2]
[367646503,1750885840519,-582.48,0.00016712,2]
[367646504,1750885840528,-460.0,0.00016712,2]
[367646505,1750885840537,-460.0,0.00016712,2]
[367646506,1750885840548,-460.0,0.00016712,2]
[367646507,1750885840557,-1161.54,0.00016712,2]
[367646508,1750885840566,-460.0,0.00016712,2]
[367646509,1750885840576,-1235.74,0.00016712,2]
[367646510,1750885840585,-460.0,0.00016712,2]
[367646511,1750885840595,-639.5,0.00016712,2]
[367646512,1750885840604,-551.93,0.00016712,2]
[367646513,1750885840614,-1584.49,0.00016712,2]
[367646514,1750885840623,-460.0,0.00016712,2]
[367646515,1750885840633,-460.0,0.00016712,2]
[367646516,1750885840643,-460.0,0.00016712,2]
[367646517,1750885840652,-460.0,0.00016712,2]
[367646518,1750885840661,-464.84747191,0.00016712,2]
[367646519,1750885840672,-808.07,0.00016712,2]
[367646520,1750885840681,-460.0,0.00016712,2]
[367646521,1750885840690,-519.67,0.00016712,2]
[367646522,1750885840700,-1012.07,0.00016712,2]
[367646523,1750885840710,-460.0,0.00016712,2]
[367646524,1750885840719,-460.0,0.00016712,2]
[367646525,1750885840728,-465.13,0.00016712,2]
[367646526,1750885840737,-460.0,0.00016712,2]
[367646527,1750885840746,-460.0,0.00016712,2]
[367646528,1750885840755,-591.89,0.00016712,2]
[367646529,1750885840764,-460.0,0.00016712,2]
[367646530,1750885840773,-460.0,0.00016712,2]
[367646531,1750885840782,-460.0,0.00016986,2]
[367646532,1750885840791,-460.0,0.00016986,2]
[367646533,1750885840801,-280.78734991,0.00016986,2]
[367646534,1750885840811,-460.0,0.00016986,2]
[367646535,1750885840820,-460.0,0.00016986,2]
[367646536,1750885840829,-541.89293737,0.00016986,2]
[367646537,1750885840841,-488.79,0.00016986,2]
[367646538,1750885840851,-460.0,0.00016986,2]
[367646539,1750885840860,-460.0,0.00016986,2]
[367646540,1750885840869,-460.0,0.00016986,2]
[367646541,1750885840878,-460.0,0.00016986,2]
[367646542,1750885840888,-394.92,0.00016986,2]
[367646543,1750885840897,-460.0,0.00016986,2]
[367646544,1750885840906,-460.0,0.00016986,2]
[367646545,1750885840918,-460.0,0.00016986,2]
[367646546,1750885840928,-460.0,0.00016986,2]
[367646547,1750885840937,-334.60321979,0.00016986,2]
[367646548,1750885840946,-460.0,0.00016986,2]
[367646549,1750885840955,-460.0,0.00016986,2]
[367646550,1750885840964,-2850.69,0.00016986,2]
[367646551,1750885840973,-1856.43,0.00016986,2]
[367646552,1750885840982,-460.0,0.00016986,2]
[367646553,1750885840991,-460.0,0.00016986,2]
[367646554,1750885841000,-460.0,0.00016986,2]
[367646555,1750885841009,-481.29,0.00016986,2]
[367646556,1750885841018,-557.61929492,0.00016986,2]
[367646557,1750885841027,-460.0,0.00016986,2]
[367646558,1750885841037,-613.19,0.00016986,2]
[367646559,1750885841048,-460.0,0.00016986,2]
[367646560,1750885841057,-460.0,0.00016986,2]
[367646561,1750885841067,-1831.12,0.00016986,2]
[367646562,1750885841076,-460.0,0.00016986,2]
[367646563,1750885841085,-461.9,0.00016986,2]
[367646564,1750885841095,-460.0,0.00016986,2]
[367646565,1750885841104,-2633.05,0.00016986,2]
[367646566,1750885841114,-460.0,0.00016986,2]
[367646567,1750885841124,-315.99,0.00016986,2]
[367646568,1750885841134,-1653.86,0.00016986,2]
[367646569,1750885841143,-854.18,0.00016986,2]
[367646570,1750885841152,-882.81,0.00016986,2]
[367646571,1750885841162,-460.0,0.00016986,2]
[367646572,1750885841172,-1100.09,0.00016986,2]
[367646573,1750885841181,-2227.83,0.00016986,2]
[367646574,1750885841191,-460.0,0.00016986,2]
[367646575,1750885841200,-460.0,0.00016986,2]
[367646576,1750885841210,-939.25,0.00016986,2]
[367646577,1750885841221,-1152.15,0.00016986,2]
[367646578,1750885841231,-460.0,0.00016986,2]
[367646579,1750885841241,-460.0,0.00016986,2]
[367646580,1750885841250,-460.0,0.00016986,2]
[367646581,1750885841260,-460.0,0.00016986,2]
[367646582,1750885841269,-460.0,0.00016986,2]
[367646583,1750885841278,-919.85,0.00016986,2]
[367646584,1750885841287,-582.48,0.00016986,2]
[367646585,1750885841297,-460.0,0.00016986,2]
[367646586,1750885841306,-460.0,0.00016986,2]
[367646587,1750885841315,-460.0,0.00016986,2]
[367646588,1750885841325,-1161.54,0.00016986,2]
[367646589,1750885841335,-460.0,0.00016986,2]
[367646590,1750885841344,-1235.74,0.00016986,2]
[367646591,1750885841355,-460.0,0.00016986,2]
[367646592,1750885841364,-639.5,0.00016986,2]
[367646593,1750885841373,-551.93,0.00016986,2]
[367646594,1750885841383,-1584.49,0.00016986,2]
[367646595,1750885841392,-460.0,0.00016986,2]
[367646596,1750885841401,-460.0,0.00016986,2]
[367646597,1750885841411,-460.0,0.00016986,2]
[367646598,1750885841423,-460.0,0.00016986,2]
[367646599,1750885841432,-808.07,0.00016986,2]
[367646600,1750885841442,-460.0,0.00016986,2]
[367646601,1750885841452,-519.67,0.00016986,2]
[367646602,1750885841461,-1012.07,0.00016986,2]
[367646603,1750885841471,-460.0,0.00016986,2]
[367646604,1750885841481,-460.0,0.00016986,2]
[367646605,1750885841491,-465.13,0.00016986,2]
[367646606,1750885841500,-460.0,0.00016986,2]
[367646607,1750885841509,-460.0,0.00016986,2]
[367646608,1750885841519,-460.0,0.00016986,2]
[367646609,1750885841528,-591.89,0.00016986,2]
[367646610,1750885841537,-460.0,0.00016986,2]
[367646611,1750885841547,-570.76392144,0.00017241,2]
[367646612,1750885841556,-752.81941371,0.00017258,2]
[367646613,1750885841566,-500.0,0.00017259,2]
[367646614,1750885841575,-500.0,0.00017259,2]
[367646615,1750885841584,-500.0,0.00017259,2]
[367646616,1750885841593,-155.26726861,0.00017259,2]
[367646617,1750885841603,-500.0,0.00017259,2]
[367646618,1750885841612,-500.0,0.00017259,2]
[367646619,1750885841621,-500.0,0.00017259,2]
[367646620,1750885841630,-500.0,0.00017259,2]
[367646621,1750885841639,-500.0,0.00017259,2]
[367646622,1750885841648,-500.0,0.00017259,2]
[367646623,1750885841658,-500.0,0.00017259,2]
[367646624,1750885841667,-500.0,0.00017259,2]
[367646625,1750885841678,-500.0,0.00017259,2]
[367646626,1750885841687,-500.0,0.00017259,2]
[367646627,1750885841696,-500.0,0.00017259,2]
[367646628,1750885841706,-500.0,0.00017259,2]
[367646629,1750885841715,-500.0,0.00017259,2]
[367646630,1750885841724,-577.27771082,0.00017259,2]
[367646631,1750885841734,-500.0,0.00017259,2]
[367646632,1750885841743,-500.0,0.00017259,2]
[367646633,1750885841752,-500.0,0.00017259,2]
[367646634,1750885841762,-500.0,0.00017259,2]
[367646635,1750885841771,-500.0,0.00017259,2]
[367646636,1750885841782,-500.0,0.00017259,2]
[367646637,1750885841791,-157.41409048,0.00017259,2]
[367646638,1750885841800,-562.40738502,0.0001726,2]
[367646639,1750885841810,-460.0,0.0001726,2]
[367646640,1750885841819,-460.0,0.0001726,2]
[367646641,1750885841828,-460.0,0.0001726,2]
[367646642,1750885841838,-488.79,0.0001726,2]
[367646643,1750885841848,-460.0,0.0001726,2]
[367646644,1750885841861,-460.0,0.0001726,2]
[367646645,1750885841871,-460.0,0.0001726,2]
[367646646,1750885841880,-460.0,0.0001726,2]
[367646647,1750885841889,-460.0,0.0001726,2]
[367646648,1750885841900,-460.0,0.0001726,2]
[367646649,1750885841909,-460.0,0.0001726,2]
[367646650,1750885841918,-460.0,0.0001726,2]
[367646651,1750885841928,-460.0,0.0001726,2]
[367646652,1750885841938,-2850.69,0.0001726,2]
[367646653,1750885841948,-1856.43,0.0001726,2]
[367646654,1750885841958,-154.08,0.0001726,2]
[367646655,1750885842103,-460.0,0.0001726,2]
[367646656,1750885842113,-460.0,0.0001726,2]
[367646657,1750885842123,-481.29,0.0001726,2]
[367646658,1750885842132,-460.0,0.0001726,2]
[367646659,1750885842141,-613.19,0.0001726,2]
[367646660,1750885842150,-460.0,0.0001726,2]
[367646661,1750885842159,-460.0,0.0001726,2]
[367646662,1750885842168,-1831.12,0.0001726,2]
[367646663,1750885842178,-460.0,0.0001726,2]
[367646664,1750885842188,-461.9,0.0001726,2]
[367646665,1750885842197,-460.0,0.0001726,2]
[367646666,1750885842206,-2633.05,0.0001726,2]
[367646667,1750885842216,-460.0,0.0001726,2]
[367646668,1750885842225,-1653.86,0.0001726,2]
[367646669,1750885842235,-882.81,0.0001726,2]
[367646670,1750885842243,-854.18,0.0001726,2]
[367646671,1750885842253,-460.0,0.0001726,2]
[367646672,1750885842262,-1100.09,0.0001726,2]
[367646673,1750885842271,-2227.83,0.0001726,2]
[367646674,1750885842280,-561.11,0.0001726,2]
[367646675,1750885842290,-460.0,0.0001726,2]
[367646676,1750885842299,-939.25,0.0001726,2]
[367646677,1750885842309,-1152.15,0.0001726,2]
[367646678,1750885842318,-460.0,0.0001726,2]
[367646679,1750885842328,-460.0,0.0001726,2]
[367646680,1750885842337,-460.0,0.0001726,2]
[367646681,1750885842347,-460.0,0.0001726,2]
[367646682,1750885842356,-460.0,0.0001726,2]
[367646683,1750885842366,-919.85,0.0001726,2]
[367646684,1750885842375,-582.48,0.0001726,2]
[367646685,1750885842385,-460.0,0.0001726,2]
[367646686,1750885842394,-460.0,0.0001726,2]
[367646687,1750885842403,-460.0,0.0001726,2]
[367646688,1750885842413,-1161.54,0.0001726,2]
[367646689,1750885842422,-460.0,0.0001726,2]
[367646690,1750885842432,-1235.74,0.0001726,2]
[367646691,1750885842441,-460.0,0.0001726,2]
[367646692,1750885842451,-639.5,0.0001726,2]
[367646693,1750885842460,-551.93,0.0001726,2]
[367646695,1750885842470,-1584.49,0.0001726,2]
[367646696,1750885842479,-460.0,0.0001726,2]
[367646697,1750885842489,-460.0,0.0001726,2]
[367646698,1750885842498,-460.0,0.0001726,2]
[367646699,1750885842507,-460.0,0.0001726,2]
[367646700,1750885842517,-808.07,0.0001726,2]
[367646701,1750885842526,-460.0,0.0001726,2]
[367646702,1750885842536,-519.67,0.0001726,2]
[367646703,1750885842545,-1012.07,0.0001726,2]
[367646704,1750885842555,-460.0,0.0001726,2]
[367646705,1750885842564,-460.0,0.0001726,2]
[367646706,1750885842573,-465.13,0.0001726,2]
[367646707,1750885842583,-460.0,0.0001726,2]
[367646708,1750885842595,-460.0,0.0001726,2]
[367646709,1750885842605,-153.31067637,0.0001726,2]
[367646711,1750885842614,-591.89,0.0001726,2]
[367646713,1750885842623,-304.88004104,0.00017315,2]
[367646715,1750885842633,-500.0,0.00017315,2]
[367646718,1750885842642,-500.0,0.00017315,2]
[367646720,1750885842652,-460.0,0.00017534,2]
[367646721,1750885842661,-460.0,0.00017534,2]
[367646722,1750885842670,-460.0,0.00017534,2]
[367646723,1750885842680,-488.79,0.00017534,2]
[367646724,1750885842689,-460.0,0.00017534,2]
[367646725,1750885842698,-460.0,0.00017534,2]
[367646726,1750885842708,-152.50067076,0.00017534,2]
[367646727,1750885842718,-460.0,0.00017534,2]
[367646728,1750885842728,-460.0,0.00017534,2]
[367646729,1750885842738,-226.12,0.00017534,2]
[367646730,1750885842747,-460.0,0.00017534,2]
[367646731,1750885842757,-460.0,0.00017534,2]
[367646732,1750885842767,-460.0,0.00017534,2]
[367646733,1750885842776,-1856.43,0.00017534,2]
[367646734,1750885842785,-2850.69,0.00017534,2]
[367646735,1750885842795,-460.0,0.00017534,2]
[367646736,1750885842804,-460.0,0.00017534,2]
[367646737,1750885842814,-481.29,0.00017534,2]
[367646738,1750885842823,-460.0,0.00017534,2]
[367646739,1750885842833,-613.19,0.00017534,2]
[367646741,1750885842842,-460.0,0.00017534,2]
[367646742,1750885842851,-460.0,0.00017534,2]
[367646743,1750885842861,-1831.12,0.00017534,2]
[367646744,1750885842870,-460.0,0.00017534,2]